bitfinex/quotes_ETHUSD_20241129
["timestamp","ask_amount","ask_price","bid_price","bid_amount"]
[1732895315595,0.91304434,3628.1,3627.4,3.30674]
[1732895316167,0.91300688,3628.1,3627.5,2.75665]
[1732895316363,0.82688,3628.1,3627.5,2.75666]
[1732895316596,0.91297688,3628.2,3627.4,0.55]
[1732895316799,0.82689,3628.1,3627.4,0.55]
[1732895317012,0.82691,3628.0,3627.4,0.55]
[1732895317297,0.08612688,3628.1,3627.7,0.55]
[1732895317553,0.82685,3628.2,3627.7,0.55]
[1732895317661,0.9663,3628.5,3627.4,3.46742]
[1732895317662,0.08612259,3628.3,3627.5,0.55]
[1732895317864,0.82692,3627.9,3627.4,0.55]
[1732895318378,0.82699,3627.6,3627.1,0.55]
[1732895318692,0.82696,3627.8,3627.1,3.30696]
[1732895318893,0.82696,3627.8,3627.2,2.75694]
[1732895319091,0.82696,3627.8,3627.3,0.55]
[1732895320296,0.8269,3628.0,3627.4,0.55]
[1732895320468,0.82693,3627.9,3627.3,2.75686]
[1732895320793,0.82696,3627.8,3627.2,0.55]
[1732895321114,0.9663,3628.5,3627.1,0.55]
[1732895321320,0.82689,3628.1,3627.0,1.0114]
[1732895321526,0.82694,3627.8,3627.1,2.75696]
[1732895321726,0.8269,3628.0,3627.2,3.33448766]
[1732895321888,0.82682,3628.4,3627.3,0.55]
[1732895322084,0.82694,3627.9,3627.3,0.55]
[1732895322284,0.82694,3627.9,3627.2,2.75691]
[1732895322910,0.82689,3628.1,3627.3,0.55]
[1732895323096,0.82685,3628.2,3627.2,2.75692]
[1732895323291,0.82691,3628.0,3627.2,2.75688]
[1732895323503,0.82691,3628.0,3627.3,0.55]
[1732895324333,0.82693,3627.9,3627.3,3.30686]
[1732895324626,0.82694,3627.8,3627.2,2.75689]
[1732895324826,0.82681,3628.4,3627.1,0.55]
[1732895324827,0.82692,3627.9,3627.3,2.75685]
[1732895324994,0.82689,3628.1,3627.4,2.75678]
[1732895325196,0.8269,3628.0,3627.4,2.75678]
[1732895325393,0.8269,3628.0,3627.4,2.75672]
[1732895325596,0.8269,3628.0,3627.5,0.55]
[1732895326087,0.827,3627.6,3627.1,0.55]
[1732895326419,0.82694,3627.8,3627.1,3.30702]
[1732895326614,0.82686,3628.2,3627.4,0.55]
[1732895326996,0.82692,3627.9,3627.4,0.55]
[1732895327196,0.82684,3628.3,3627.6,2.75663]
[1732895327391,0.9663,3628.5,3627.8,0.55]
[1732895327392,0.82681,3628.4,3627.8,0.55]
[1732895327587,0.82681,3628.4,3627.8,1.5348]
[1732895327891,0.9663,3628.5,3627.8,1.5348]
[1732895328087,0.82683,3628.3,3627.8,1.5348]
[1732895328339,0.82687,3628.2,3627.8,1.5348]
[1732895328637,0.82684,3628.3,3627.8,1.5348]
[1732895328839,0.82683,3628.3,3627.8,1.5348]
[1732895329643,0.82685,3628.2,3627.8,1.5348]
[1732895329838,0.82683,3628.3,3627.8,1.5348]
[1732895330146,0.82688,3628.1,3627.6,0.55]
[1732895330334,0.8269,3628.0,3627.5,3.8132]
[1732895330528,0.82688,3628.1,3627.5,3.8132]
[1732895331616,0.82693,3627.9,3627.5,1.0565]
[1732895331832,0.82696,3627.8,3627.5,1.0565]
[1732895332041,0.82696,3627.8,3627.3,0.55]
[1732895332751,0.8269,3628.0,3627.3,3.30686]
[1732895332898,0.82686,3628.2,3627.4,2.75679]
[1732895333100,0.82681,3628.4,3627.4,2.75679]
[1732895333101,0.82687,3628.1,3627.6,2.75664]
[1732895333300,0.8269,3628.0,3627.5,0.02756423]
[1732895333546,0.82693,3627.9,3627.3,3.30682]
[1732895333853,0.82676,3628.6,3627.5,0.55]
[1732895334010,0.82676,3628.7,3628.1,2.75625]
[1732895334501,0.82679,3628.5,3628.0,0.55]
[1732895334705,0.82687,3628.1,3627.6,1.033]
[1732895334952,0.82687,3628.1,3627.7,0.55]
[1732895335121,0.82684,3628.3,3627.7,0.55]
[1732895335305,0.82685,3628.2,3627.7,0.55]
[1732895335817,0.82685,3628.2,3627.6,3.78959]
[1732895336015,0.82692,3627.9,3627.6,1.033]
[1732895336423,0.82695,3627.8,3627.3,0.55]
[1732895336652,0.8269,3628.0,3627.3,0.55]
[1732895336838,1.0085,3628.2,3627.2,1.0026]
[1732895337039,0.82717,3626.9,3626.2,3.73237]
[1732895337257,0.82723,3626.6,3626.2,0.9747]
[1732895337566,0.9586,3627.0,3625.8,3.73268]
[1732895337767,0.82719,3626.8,3626.0,2.75784]
[1732895337925,1.78573,3627.0,3626.2,2.75768]
[1732895338128,0.82711,3627.1,3626.4,2.75749]
[1732895338350,0.82715,3626.9,3626.2,2.75769]
[1732895338549,0.82711,3627.1,3626.6,0.9746]
[1732895339025,0.08614833,3627.2,3626.6,0.9746]
[1732895339228,0.82706,3627.3,3626.6,0.9746]
[1732895339229,0.08614833,3627.3,3626.7,0.02757049]
[1732895339430,0.08614461,3627.2,3626.7,2.75731]
[1732895339628,0.8271,3627.2,3626.6,0.9746]
[1732895339867,0.82708,3627.3,3626.6,0.9746]
[1732895340119,0.08614461,3627.2,3626.2,2.75768]
[1732895340271,0.82706,3627.3,3626.5,2.75747]
[1732895340272,0.08614461,3627.1,3626.5,2.75747]
[1732895340578,0.98547224,3627.8,3626.5,2.75747]
[1732895340579,0.08614461,3627.0,3626.5,2.75747]
[1732895340735,0.8271,3627.1,3626.3,4.28219]
[1732895340931,0.08614888,3627.0,3626.4,2.75753]
[1732895341132,0.82718,3626.8,3626.3,0.9746]
[1732895341354,0.82715,3627.0,3626.3,0.9746]
[1732895341355,1.0297,3627.0,3626.3,0.9746]
[1732895341563,1.85684,3627.0,3626.3,3.75979312]
[1732895341737,0.91330171,3626.9,3626.3,0.9746]
[1732895341940,0.08615171,3626.8,3626.3,0.9746]
[1732895342165,1.0297,3627.0,3626.3,0.9746]
[1732895342349,0.82717,3626.8,3626.3,0.9746]
[1732895342675,0.82707,3627.3,3626.6,2.75735]
[1732895342837,0.08614429,3627.2,3626.6,2.75735]
[1732895343034,0.82703,3627.4,3626.6,2.75735]
[1732895343246,0.82703,3627.4,3626.4,2.75754]
[1732895343247,0.8271,3627.2,3626.4,2.75754]
[1732895343434,0.91325415,3627.1,3626.5,2.75747]
[1732895343635,0.08614415,3627.0,3626.6,2.75735]
[1732895343942,0.82701,3627.5,3626.6,3.443646]
[1732895344145,0.08614738,3627.4,3626.8,2.75724]
[1732895344372,0.08614738,3627.3,3626.9,0.02757018]
[1732895344548,0.00267217,3628.0,3626.3,1.34784]
[1732895344549,0.82697,3627.7,3627.0,2.75703]
[1732895344746,0.08613953,3627.6,3627.0,2.75703]
[1732895344980,0.08613876,3627.5,3627.0,2.75703]
[1732895345176,0.08613876,3627.4,3626.7,0.55]
[1732895345329,0.82695,3627.8,3627.0,2.75709]
[1732895345536,1.0021,3628.0,3627.1,0.02756677]
[1732895345731,0.82692,3627.9,3627.1,0.02756674]
[1732895346047,0.82694,3627.8,3627.1,0.55]
[1732895346969,1.82902,3628.0,3627.2,2.75687]
[1732895347176,0.00268086,3628.4,3627.6,0.55]
[1732895347378,1.81218,3628.6,3627.8,0.55]
[1732895347379,0.9854,3628.6,3627.8,0.55]
[1732895347693,0.8268,3628.5,3627.9,2.75639]
[1732895348655,0.82681,3628.4,3627.8,0.55]
[1732895348895,0.82682,3628.4,3627.8,0.55]
[1732895349194,0.82671,3628.9,3628.3,2.7561]
[1732895349407,1.059,3629.0,3628.5,2.75588]
[1732895349552,0.82665,3629.1,3628.5,2.75588]
[1732895349757,1.88561,3629.3,3628.4,2.75602]
[1732895349758,0.82667,3629.0,3628.4,2.75602]
[1732895350052,1.059,3629.3,3628.2,3.30618]
[1732895350262,1.059,3629.3,3627.9,0.55]
[1732895350510,0.82678,3628.6,3627.9,0.55]
[1732895350655,0.82676,3628.7,3627.9,0.55]
[1732895351007,0.82697,3627.7,3627.0,1.0473]
[1732895351159,0.82697,3627.7,3627.1,2.75701]
[1732895351354,0.82699,3627.6,3627.0,1.4608213]
[1732895351559,0.82697,3627.7,3627.0,3.80438]
[1732895351760,0.82697,3627.7,3627.1,2.75701]
[1732895352102,0.82693,3627.9,3627.1,2.75701]
[1732895352288,0.82693,3627.9,3627.3,2.75685]
[1732895352669,0.82688,3628.1,3627.1,0.55]
[1732895352884,0.82695,3627.8,3627.1,3.30698]
[1732895353062,0.82695,3627.8,3627.2,2.75694]
[1732895353267,0.82695,3627.8,3627.3,0.55]
[1732895354671,0.82694,3627.9,3627.3,0.55]
[1732895354903,1.059,3628.3,3627.1,0.55]
[1732895355058,0.82696,3627.8,3627.1,0.55]
[1732895355305,1.059,3628.3,3627.3,0.55]
[1732895355306,0.82693,3627.9,3627.3,0.55]
[1732895355504,1.059,3628.3,3627.5,0.55]
[1732895355703,1.059,3628.3,3627.5,3.30669]
[1732895355704,0.82688,3628.1,3627.5,3.30669]
[1732895356143,0.8269,3628.0,3627.4,0.55]
[1732895356349,0.8269,3628.0,3627.5,0.55]
[1732895356647,1.059,3628.3,3627.7,0.55]
[1732895356817,1.88583,3628.3,3627.7,3.30649]
[1732895357003,1.059,3628.3,3627.7,3.30649]
[1732895357208,0.82685,3628.2,3627.6,3.30663]
[1732895357541,1.88584,3628.3,3627.7,2.75655]
[1732895357849,0.9645,3628.7,3627.9,0.55]
[1732895358148,0.9645,3629.1,3628.3,3.30604]
[1732895358440,0.9645,3629.1,3628.6,0.55]
[1732895358640,0.82665,3629.1,3628.6,0.55]
[1732895358800,0.82665,3629.1,3628.4,0.55]
[1732895359009,0.82667,3629.0,3628.4,0.55]
[1732895359411,0.82665,3629.1,3628.6,0.55]
[1732895359722,1.0201,3629.3,3628.6,0.55]
[1732895359723,1.8467,3629.3,3628.6,0.55]
[1732895359917,0.82663,3629.2,3628.6,0.02755551]
[1732895360150,0.82665,3629.1,3628.4,0.55]
[1732895360341,0.82669,3628.9,3628.4,0.55]
[1732895360725,0.82667,3629.1,3628.4,0.55]
[1732895361049,0.82667,3629.1,3628.5,0.02755686]
[1732895361454,1.0201,3629.3,3628.5,0.02755686]
[1732895361751,0.82662,3629.2,3628.5,2.75594]
[1732895361914,1.0201,3629.3,3628.6,0.55]
[1732895362108,0.82669,3629.0,3628.5,0.55]
[1732895362355,0.8267,3628.9,3628.3,0.55]
[1732895362693,1.84672,3629.3,3628.6,2.75587]
[1732895362956,1.0201,3629.3,3628.7,0.55]
[1732895363146,0.82665,3629.1,3628.7,0.55]
[1732895363313,0.82665,3629.1,3628.5,0.55]
[1732895363515,0.82665,3629.1,3628.5,3.740258]
[1732895364042,0.82662,3629.3,3628.5,3.740258]
[1732895364354,0.82664,3629.2,3628.5,3.740258]
[1732895364857,1.0268,3629.6,3628.5,0.984308]
[1732895365012,1.0327,3629.9,3628.2,0.55]
[1732895365224,1.0327,3629.4,3628.2,0.55]
[1732895365523,0.82916001,3629.9,3627.7,0.9792]
[1732895365524,1.0327,3628.7,3628.1,0.55]
[1732895366032,1.0327,3628.7,3628.1,3.30625]
[1732895366340,0.82676,3628.6,3628.0,2.75632]
[1732895366765,0.82676,3628.6,3628.1,0.55]
[1732895366967,0.82676,3628.6,3628.0,2.75631]
[1732895367139,1.0327,3628.7,3628.2,0.55]
[1732895368071,1.0327,3628.7,3628.0,0.55]
[1732895368249,0.82685,3628.3,3627.8,0.55]
[1732895368569,0.82686,3628.2,3627.8,0.55]
[1732895369362,0.82679,3628.5,3627.8,0.55]
[1732895369551,0.82679,3628.5,3628.0,0.55]
[1732895370340,1.85944,3628.7,3628.0,3.30631]
[1732895370542,0.82672,3628.8,3628.0,0.55]
[1732895370761,0.82662,3629.3,3628.6,2.75583]
[1732895370969,0.9759,3629.5,3628.3,3.30605]
[1732895371152,0.8266,3629.3,3628.7,2.75579]
[1732895371356,0.82662,3629.3,3628.5,0.55]
[1732895371690,0.82662,3629.3,3628.7,2.75579]
[1732895371885,1.0605,3629.9,3628.9,1.0393]
[1732895372194,1.0605,3629.9,3629.2,0.55]
[1732895372338,0.82641,3630.2,3629.4,2.7552]
[1732895372537,1.0605,3630.2,3629.5,0.55]
[1732895372885,0.82646,3630.0,3629.3,0.55]
[1732895373176,0.82646,3629.9,3629.3,0.55]
[1732895373733,0.82642,3630.1,3629.5,0.55]
[1732895373934,1.8869,3630.2,3629.6,2.75512]
[1732895374137,1.8869,3630.2,3629.5,0.55]
[1732895374334,0.82642,3630.1,3629.5,0.55]
[1732895374551,0.82642,3630.1,3629.5,2.75516]
[1732895374778,1.0605,3630.2,3629.6,0.55]
[1732895374954,1.88691,3630.2,3629.4,0.55]
[1732895375137,0.82642,3630.1,3629.5,0.55]
[1732895375337,1.0605,3630.2,3629.5,3.30518]
[1732895375790,0.82644,3630.1,3629.3,0.55]
[1732895375937,0.82644,3630.1,3629.4,2.75526]
[1732895376132,0.82644,3630.1,3629.5,0.55]
[1732895376550,1.0605,3630.2,3629.5,0.55]
[1732895376769,0.82642,3630.1,3629.5,3.30514]
[1732895376953,0.82642,3630.1,3629.4,0.55]
[1732895377167,1.0605,3630.2,3629.4,0.55]
[1732895377168,0.82644,3630.0,3629.4,0.55]
[1732895377792,1.8869,3630.2,3629.4,3.30526]
[1732895378120,1.0605,3630.2,3629.4,1.156075]
[1732895378417,1.0605,3630.2,3629.6,2.75511]
[1732895379478,1.8869,3630.2,3629.3,0.55]
[1732895379677,1.79161,3630.6,3629.6,1.5475]
[1732895379925,1.79161,3630.6,3629.8,2.7549]
[1732895380624,0.82634,3630.5,3629.8,2.7549]
[1732895380913,0.9653,3630.6,3630.0,2.75477]
[1732895381288,0.9653,3630.6,3630.2,2.7546]
[1732895381507,1.0506,3630.9,3630.2,2.7546]
[1732895381716,1.0506,3630.9,3630.1,3.30473]
[1732895381873,0.82627,3630.8,3630.1,3.30473]
[1732895382080,2.75424,3630.8,3630.0,3.30479]
[1732895382482,2.75435,3630.7,3630.0,0.55]
[1732895382679,2.75435,3630.7,3630.1,2.75472]
[1732895382982,2.75422,3630.8,3630.1,2.75472]
[1732895383208,2.75422,3630.8,3630.2,2.75463]
[1732895383419,2.75422,3630.8,3630.0,0.55]
[1732895383586,2.75422,3630.8,3630.2,2.75466]
[1732895384398,2.75429,3630.7,3630.0,3.30476]
[1732895384702,2.75429,3630.7,3630.1,2.75467]
[1732895384900,1.0506,3630.9,3630.2,2.75466]
[1732895385101,2.75426,3630.8,3630.2,2.75466]
[1732895385336,2.75433,3630.7,3630.1,2.75471]
[1732895385536,1.0506,3630.9,3630.2,2.75466]
[1732895385726,2.75421,3630.8,3630.2,2.75466]
[1732895386052,2.75421,3630.8,3630.0,3.30481]
[1732895386053,2.75431,3630.7,3630.1,2.75474]
[1732895386228,2.75431,3630.7,3630.1,3.360701]
[1732895386418,3.80478,3630.9,3630.2,2.75466]
[1732895386618,2.7543,3630.7,3630.1,0.605961]
[1732895387112,2.7543,3630.7,3630.0,0.55]
[1732895387318,2.75437,3630.6,3630.0,2.75479]
[1732895387620,2.75441,3630.6,3629.9,3.30484]
[1732895387947,1.0506,3630.9,3629.6,0.9975]
[1732895387948,2.7546,3630.3,3629.7,3.30503]
[1732895388248,1.0506,3630.9,3629.7,3.30503]
[1732895388249,2.75452,3630.4,3629.8,2.75495]
[1732895388456,2.75444,3630.5,3629.8,3.460712]
[1732895388661,2.75444,3630.5,3630.0,2.75481]
[1732895388947,2.7543,3630.7,3630.0,2.75481]
[1732895389151,2.7543,3630.7,3630.1,2.75472]
[1732895389513,1.0506,3630.9,3629.9,2.75488]
[1732895389712,2.75433,3630.7,3630.0,2.75479]
[1732895390211,2.75436,3630.6,3630.0,2.75479]
[1732895390644,2.75436,3630.6,3629.9,0.5008142]
[1732895390837,2.75445,3630.5,3630.0,2.75481]
[1732895391113,2.75437,3630.6,3630.0,2.75481]
[1732895391319,2.75437,3630.6,3630.1,2.75473]
[1732895391629,2.75437,3630.6,3629.9,3.2556542]
[1732895392116,2.75444,3630.5,3629.9,3.2556542]
[1732895392323,2.75429,3630.7,3629.9,0.5008142]
[1732895392524,2.75442,3630.6,3629.9,2.75482]
[1732895392857,1.0506,3630.9,3629.9,0.55]
[1732895393057,2.75427,3630.8,3630.1,2.75471]
[1732895393402,1.0506,3630.9,3630.2,2.75466]
[1732895393561,2.75429,3630.7,3630.2,2.75466]
[1732895393968,2.75436,3630.7,3630.0,2.75481]
[1732895394290,2.75441,3630.6,3629.8,2.75494]
[1732895394487,2.75441,3630.6,3629.9,0.55]
[1732895394650,2.75434,3630.7,3630.0,2.75481]
[1732895394850,2.75438,3630.6,3630.0,2.75481]
[1732895395052,2.75438,3630.6,3629.8,0.55]
[1732895395290,2.75451,3630.5,3629.8,3.30496]
[1732895395590,3.807501,3630.9,3629.6,0.9975]
[1732895395777,2.75374,3631.5,3629.6,0.9975]
[1732895395778,2.75469,3630.2,3629.6,0.55]
[1732895396166,2.75452,3630.4,3629.6,0.55]
[1732895396167,2.75464,3630.3,3629.6,0.55]
[1732895396378,2.75464,3630.3,3629.7,0.330514]
[1732895396688,0.973211,3630.8,3630.1,2.7547]
[1732895396689,3.727451,3630.8,3630.1,2.7547]
[1732895396901,3.22874,3630.8,3630.1,2.7547]
[1732895397061,0.4745,3630.8,3630.2,2.75465]
[1732895397252,3.22875,3630.8,3630.2,2.75465]
[1732895397452,0.4745,3630.8,3630.3,2.75452]
[1732895397654,2.75398,3631.1,3630.5,2.75437]
[1732895397865,2.75402,3631.1,3630.5,2.75437]
[1732895398151,0.002711,3631.5,3630.5,2.75441]
[1732895398355,0.002711,3631.5,3630.3,3.30456]
[1732895398654,2.75412,3631.0,3630.4,0.6433775]
[1732895399074,2.75412,3631.0,3630.4,3.3978675]
[1732895399287,2.75419,3630.9,3630.4,0.6433775]
[1732895399464,2.75422,3630.8,3630.4,0.6433775]
[1732895399666,2.75412,3631.0,3630.4,0.6433775]
[1732895400372,0.002711,3631.1,3630.4,0.6433775]
[1732895400577,2.75414,3630.9,3630.3,2.75454]
[1732895400757,0.002711,3631.1,3630.2,0.55]
[1732895400958,2.75459,3630.3,3629.7,4.141504]
[1732895401172,2.75444,3630.6,3629.7,4.141504]
[1732895401401,2.757151,3630.6,3629.7,1.386514]
[1732895401604,0.002711,3630.7,3629.8,0.1386514]
[1732895401810,0.002711,3630.8,3629.8,0.1386514]
[1732895402108,2.75399,3631.1,3630.5,3.78688]
[1732895402673,0.002711,3631.2,3630.5,1.0325]
[1732895402674,2.75407,3631.0,3630.5,1.0325]
[1732895403117,0.002711,3631.1,3630.5,1.0325]
[1732895403408,2.75392,3631.2,3630.1,2.75471]
[1732895403409,2.75406,3631.0,3630.1,2.75471]
[1732895403579,2.75406,3631.0,3630.2,0.9755]
[1732895403580,2.75429,3630.7,3630.2,0.9755]
[1732895403761,2.75449,3630.5,3629.9,0.9755]
[1732895403963,3.71102,3630.8,3629.9,0.9755]
[1732895404174,2.75439,3630.6,3629.9,0.9755]
[1732895404417,0.00272515,3630.7,3629.5,0.9755]
[1732895404580,2.75402,3631.1,3628.9,2.75559]
[1732895404581,2.75517,3629.6,3628.9,2.75559]
[1732895404760,2.75521,3629.5,3628.9,3.404276]
[1732895404960,0.9568,3629.8,3628.9,0.648686]
[1732895405206,0.9568,3629.8,3629.2,2.75536]
[1732895405422,0.9568,3629.8,3627.6,0.14337025]
[1732895405423,0.08609238,3629.7,3627.6,0.14337025]
[1732895405596,0.08609238,3629.7,3627.4,3.13054015]
[1732895405597,2.75564,3629.0,3628.2,2.75612]
[1732895405793,0.08609238,3628.9,3628.6,2.75583]
[1732895406030,0.08609238,3628.8,3628.6,2.75583]
[1732895406198,2.75543,3629.2,3628.6,3.134393]
[1732895406537,0.08609928,3629.1,3628.7,2.7558]
[1732895406689,0.08609928,3629.0,3628.7,2.7558]
[1732895406888,1.0412,3629.5,3628.6,0.378563]
[1732895407236,2.87210623,3631.1,3628.5,1.0298]
[1732895407237,0.08609832,3629.4,3629.3,2.75535]
[1732895407439,0.08609832,3629.4,3629.3,3.73415]
[1732895407616,2.84104832,3629.9,3629.3,0.9788]
[1732895407937,3.71487,3630.0,3629.1,2.75543]
[1732895407938,0.08608883,3629.8,3629.1,0.55]
[1732895408242,0.08608883,3629.7,3629.2,2.75537]
[1732895408403,0.08608883,3629.6,3629.2,2.75537]
[1732895408605,0.08608883,3629.5,3629.2,2.75537]
[1732895408975,0.08608883,3629.4,3629.3,2.75535]
[1732895409170,0.08608883,3629.4,3629.1,3.30547]
[1732895409318,0.08608883,3629.3,3629.1,3.30547]
[1732895409494,2.75504,3629.7,3629.1,2.75547]
[1732895409703,0.08609392,3629.6,3629.1,2.75547]
[1732895409948,0.08609392,3629.5,3629.1,2.75547]
[1732895410248,0.08609392,3629.4,3628.7,0.9723]
[1732895410417,0.9741,3629.3,3628.2,2.75617]
[1732895410621,2.75582,3628.7,3628.0,2.75628]
[1732895410921,0.08609543,3628.6,3627.8,2.75649]
[1732895411139,0.08609543,3628.5,3627.7,0.9723]
[1732895411362,0.9741,3629.2,3628.6,2.75587]
[1732895411363,0.08609543,3629.0,3628.6,2.75587]
[1732895411503,0.9741,3629.2,3628.4,3.79883]
[1732895411504,0.08609543,3628.9,3628.5,2.75595]
[1732895411718,0.08609543,3629.1,3628.5,2.78350615]
[1732895411917,0.08609543,3629.0,3628.7,2.75574]
[1732895412227,0.08609543,3629.4,3628.9,2.75565]
[1732895412428,0.08609543,3629.3,3628.4,3.79876]
[1732895412626,1.0573,3629.8,3628.4,3.79876]
[1732895412627,0.08609543,3629.2,3628.9,2.75564]
[1732895412959,0.08609798,3629.7,3629.2,2.75537]
[1732895413251,0.08609798,3630.0,3629.2,3.80656]
[1732895413462,0.08609798,3629.9,3629.3,3.136006]
[1732895413617,0.08609798,3629.8,3629.5,2.75514]
[1732895413814,0.08609798,3630.0,3629.7,2.75504]
[1732895414016,2.84056798,3630.5,3629.7,2.75504]
[1732895414313,0.08609798,3630.4,3629.8,2.75496]
[1732895414514,0.08609798,3630.4,3629.6,2.75511]
[1732895414515,0.08609798,3630.3,3629.6,2.75511]
[1732895414753,0.08609798,3630.2,3629.7,0.606036]
[1732895414950,0.08609798,3630.1,3629.8,2.7549]
[1732895415113,0.08609798,3630.4,3629.8,2.7549]
[1732895415317,0.08609798,3630.3,3629.8,2.7549]
[1732895415655,0.08609798,3630.2,3629.4,0.55]
[1732895415949,0.08609798,3630.5,3629.4,0.55]
[1732895416250,0.08609798,3630.4,3629.6,0.55]
[1732895416453,0.08609798,3630.4,3629.8,2.7549]
[1732895416659,0.08609798,3630.3,3629.9,2.75488]
[1732895416836,0.08609798,3630.2,3629.9,2.75488]
[1732895417047,0.08609798,3630.5,3629.6,0.55]
[1732895417242,0.08609798,3630.4,3630.2,2.75466]
[1732895417452,0.08609798,3630.3,3630.2,3.030126]
[1732895417616,0.08609798,3630.5,3630.2,2.75466]
[1732895417822,0.08609798,3630.4,3630.3,2.75452]
[1732895418025,0.08609798,3630.8,3630.3,2.75452]
[1732895418333,0.08609798,3630.7,3630.1,2.75473]
[1732895418516,0.08609798,3630.6,3630.1,2.75473]
[1732895418722,0.08609798,3630.5,3630.2,2.75465]
[1732895418922,0.08609798,3630.4,3630.3,2.75456]
[1732895419722,0.9602,3630.9,3630.3,2.75456]
[1732895419723,0.9602,3630.9,3630.4,2.75447]
[1732895420075,2.75443,3630.6,3629.9,2.75482]
[1732895420235,0.08606965,3630.5,3629.9,2.75482]
[1732895420563,1.0598,3630.7,3629.9,2.75482]
[1732895420564,0.08606965,3630.4,3630.1,2.75472]
[1732895420759,0.08606965,3630.3,3630.1,2.75472]
[1732895421058,0.08606965,3630.6,3630.1,0.550954]
[1732895421264,0.08606965,3630.5,3630.3,2.75459]
[1732895421417,0.08606965,3630.4,3630.3,2.75459]
[1732895421620,1.0598,3631.0,3630.5,2.75437]
[1732895421621,0.08606965,3630.9,3630.5,2.75437]
[1732895421821,0.08606965,3630.9,3630.3,2.75459]
[1732895421822,0.08606965,3630.8,3630.6,2.75431]
[1732895422053,0.08606965,3630.7,3630.6,2.75431]
[1732895422468,3.78135,3631.3,3630.3,2.75454]
[1732895422469,2.75409,3631.0,3630.3,2.75454]
[1732895422625,0.08606965,3630.9,3630.3,2.75454]
[1732895423010,2.84029965,3630.8,3630.1,2.75467]
[1732895423178,2.84029965,3630.8,3628.6,0.2]
[1732895423179,2.75436,3630.6,3629.7,2.75502]
[1732895423467,2.75474,3630.2,3629.0,0.9991]
[1732895423645,1.0489,3630.0,3629.0,0.9991]
[1732895423854,2.7552,3629.5,3628.6,0.9991]
[1732895424048,1.0489,3629.3,3628.1,3.75536]
[1732895424363,0.08606965,3629.3,3629.0,2.75557]
[1732895424668,0.08606965,3629.5,3629.0,2.75555]
[1732895424849,0.08606965,3629.4,3628.8,2.75567]
[1732895425159,3.71663,3629.6,3628.9,2.75564]
[1732895425160,0.08606965,3629.3,3628.9,2.75564]
[1732895425327,3.71668,3629.6,3629.0,2.75557]
[1732895425328,0.08606965,3629.5,3629.0,2.75557]
[1732895425525,0.08606965,3629.4,3629.0,2.75557]
[1732895425844,0.08606965,3629.3,3629.1,0.02755253]
[1732895426054,0.08606965,3629.5,3629.1,2.75548]
[1732895426354,0.08606965,3629.9,3629.8,2.75497]
[1732895426664,0.08606965,3630.2,3629.6,2.75512]
[1732895426866,0.08606965,3630.1,3629.2,0.55]
[1732895427049,0.08606965,3630.0,3629.2,0.55]
[1732895427233,0.08606965,3629.9,3629.3,0.55]
[1732895427433,0.08606965,3629.8,3629.3,3.690882]
[1732895427641,2.75475,3630.1,3629.5,2.75516]
[1732895427961,0.08606965,3630.0,3629.1,0.55]
[1732895428168,0.08606965,3629.9,3629.8,2.75496]
[1732895428369,2.7543,3630.7,3629.8,2.75496]
[1732895428370,0.08606965,3630.3,3629.8,3.30496]
[1732895428527,0.08606965,3630.2,3629.8,3.910954]
[1732895428725,2.75483,3630.0,3629.4,2.75526]
[1732895428953,0.08606965,3629.9,3629.4,2.75526]
[1732895429157,1.0019,3630.1,3629.0,2.75552]
[1732895429158,2.69506517,3629.8,3629.0,2.75552]
[1732895429473,2.84118148,3629.7,3629.1,2.75549]
[1732895429640,0.08609148,3629.6,3628.7,0.9663]
[1732895429961,0.08609148,3629.5,3629.1,2.75548]
[1732895430167,0.08609148,3629.4,3628.8,2.75573]
[1732895430327,2.75513,3629.6,3628.8,2.75573]
[1732895430328,0.08609148,3629.5,3628.9,2.75563]
[1732895430560,0.08609148,3629.5,3628.8,3.403521]
[1732895430561,0.08609148,3629.4,3629.0,2.75553]
[1732895430764,0.08609148,3629.3,3629.0,2.75553]
[1732895430967,0.08609148,3629.5,3629.0,2.75553]
[1732895431188,0.08609148,3629.4,3628.9,0.55]
[1732895431506,0.08609148,3629.7,3629.2,2.7554]
[1732895431803,0.08609148,3629.6,3629.2,2.7554]
[1732895431976,1.0019,3630.1,3629.3,2.75534]
[1732895431977,0.08609148,3629.5,3629.3,2.75534]
[1732895432193,0.08609148,3629.5,3628.8,0.55]
[1732895432194,0.08609148,3630.0,3629.5,2.75517]
[1732895432478,0.08609148,3629.9,3629.7,2.75504]
[1732895432677,2.75411,3631.0,3629.7,2.75504]
[1732895432678,0.08607932,3630.3,3630.2,2.7546]
[1732895432891,0.08607932,3630.3,3630.2,3.3046]
[1732895433093,1.0591,3630.9,3630.4,2.75446]
[1732895433094,0.08607932,3630.7,3630.4,2.75446]
[1732895433410,0.08607932,3630.6,3630.3,2.75457]
[1732895433719,0.08607932,3630.5,3630.4,2.7545]
[1732895434009,0.08607932,3630.8,3630.6,2.75434]
[1732895434205,3.71061,3631.2,3630.4,2.7545]
[1732895434206,0.08607932,3630.7,3630.4,2.7545]
[1732895434379,0.08607932,3630.6,3630.5,0.6769899]
[1732895434587,0.08607932,3631.1,3630.5,0.6769899]
[1732895434767,0.08607932,3631.0,3630.7,2.75425]
[1732895435114,0.9567,3631.2,3630.5,0.6769899]
[1732895435115,0.08607932,3630.9,3630.5,2.75443]